fUSD/lending_fUSD_20250614
["ID","MTS","AMOUNT","RATE_DAILY","PERIOD"]
[365795191,1749917435024,-7231.01573921,0.000166,2]
[365795192,1749917435047,-723.44841407,0.000166,2]
[365795193,1749917435059,-1077.83471339,0.000166,2]
[365795194,1749917435070,-163.42,0.000166,2]
[365795195,1749917435083,-675.90539581,0.00016883,2]
[365795203,1749917438091,-157.72698045,0.00016883,2]
[365795204,1749917438101,-644.33008233,0.00016898,2]
[365795205,1749917438111,-737.17308862,0.000169,2]
[365795373,1749917440164,-1073.6,0.000169,2]
[365795374,1749917440252,-3189.22691138,0.000169,2]
[365795375,1749917440262,-1000.0,0.000169,2]
[365795376,1749917440271,-163.42,0.000169,2]
[365795377,1749917440280,-163.42,0.000169,2]
[365795378,1749917440290,-1837.05120984,0.000169,2]
[365795379,1749917440299,-500.75857659,0.00016973,2]
[365795381,1749917440308,-500.0,0.00016973,2]
[365795383,1749917440318,-145468.3210621,0.00016995,2]
[365795385,1749917440327,-5137.73562586,0.00016995,2]
[365795387,1749917440339,-2006.08103657,0.00016995,2]
[365795389,1749917440351,-3343.64509638,0.00016995,2]
[365795391,1749917440362,-1585.2369165,0.00016995,2]
[365795394,1749917440377,-2493.5713982,0.00016995,2]
[365795779,1749917444039,-651.35,0.00016995,2]
[365795780,1749917444051,-443.51438416,0.00016995,2]
[365795781,1749917444101,-510.53591213,0.00016995,2]
[365795782,1749917444111,-7960.4425989,0.00016995,2]
[365795783,1749917444120,-300.0,0.00016996,2]
[365795784,1749917444130,-1144.49571334,0.00016996,2]
[365795785,1749917444139,-200.0,0.00016996,2]
[365795786,1749917444149,-4337.52035197,0.00016998,2]
[365795787,1749917444164,-6986.63689154,0.00016998,2]
[365795788,1749917444174,-152.088404,0.00016998,2]
[365795790,1749917444183,-152.088404,0.00016998,2]
[365795792,1749917444193,-151.0,0.00016998,2]
[365795794,1749917444204,-151.0,0.00016998,2]
[365795796,1749917444213,-151.794727,0.00016998,2]
[365795798,1749917444223,-151.0,0.00016998,2]
[365795800,1749917444233,-151.0,0.00016998,2]
[365795802,1749917444242,-151.133852,0.00016998,2]
[365795804,1749917444252,-237.840879,0.00016998,2]
[365795806,1749917444262,-237.840879,0.00016998,2]
[365795808,1749917444272,-151.0,0.00016998,2]
[365795810,1749917444281,-203.07945359,0.00016998,2]
[365795812,1749917444290,-345.30924979,0.00016998,2]
[365795813,1749917444300,-168.1956782,0.00016998,2]
[365796001,1749917446088,-169.23287799,0.00016998,2]
[365796003,1749917446101,-331.8043218,0.00016998,2]
[365796005,1749917446110,-500.0,0.00016998,2]
[365796007,1749917446120,-496.15156161,0.00016998,2]
[365796009,1749917446130,-167.93963082,0.00016998,2]
[365796011,1749917446139,-215.2619505,0.00016998,2]
[365796013,1749917446150,-500.0,0.00016998,2]
[365796015,1749917446159,-383.43879481,0.00016998,2]
[365796017,1749917446171,-116.56120519,0.00016998,2]
[365796019,1749917446181,-500.0,0.00016998,2]
[365796021,1749917446191,-245.48369904,0.00016998,2]
[365796023,1749917446200,-500.0,0.00016998,2]
[365796025,1749917446209,-390.61132716,0.00016998,2]
[365796027,1749917446219,-500.0,0.00016998,2]
[365796029,1749917446228,-500.0,0.00016998,2]
[365796031,1749917446238,-500.0,0.00016998,2]
[365796033,1749917446247,-500.0,0.00016998,2]
[365796035,1749917446256,-500.0,0.00016998,2]
[365796037,1749917446266,-500.0,0.00016998,2]
[365796039,1749917446276,-253.39636852,0.00016998,2]
[365796041,1749917446285,-481.77912429,0.00016998,2]
[365796043,1749917446295,-500.0,0.00016998,2]
[365796045,1749917446304,-500.0,0.00016998,2]
[365796046,1749917446313,-500.0,0.00016998,2]
[365796048,1749917446323,-500.0,0.00016998,2]
[365796050,1749917446332,-500.0,0.00016998,2]
[365796053,1749917446343,-321.65733703,0.00016998,2]
[365796054,1749917446353,-231.68832772,0.00016998,2]
[365796056,1749917446362,-500.0,0.00016998,2]
[365796059,1749917446372,-1000.0,0.00016999,2]
[365796061,1749917446382,-1000.0,0.00016999,2]
[365796063,1749917446392,-10530.88610843,0.00016999,2]
[365796064,1749917446401,-1000.0,0.00016999,2]
[365796066,1749917446410,-1000.0,0.00016999,2]
[365796068,1749917446420,-1000.0,0.00016999,2]
[365796071,1749917446429,-300.0,0.00016999,2]
[365796073,1749917446439,-168.99,0.00016999,2]
[365796074,1749917446448,-150.0,0.00016999,2]
[365796077,1749917446458,-500.0,0.00016999,2]
[365796079,1749917446467,-500.0,0.00016999,2]
[365796081,1749917446477,-150.0,0.00016999,2]
[365796083,1749917446487,-150.0,0.00016999,2]
[365796085,1749917446497,-150.0,0.00016999,2]
[365796087,1749917446506,-150.0,0.00016999,2]
[365796089,1749917446516,-150.0,0.00016999,2]
[365796091,1749917446526,-150.0,0.00016999,2]
[365796093,1749917446535,-150.0,0.00016999,2]
[365796095,1749917446546,-150.0,0.00016999,2]
[365796097,1749917446555,-292.41870439,0.00016999,2]
[365796099,1749917446565,-150.0,0.00016999,2]
[365796101,1749917446574,-150.0,0.00016999,2]
[365796103,1749917446585,-150.0,0.00016999,2]
[365796105,1749917446594,-150.0,0.00016999,2]
[365796107,1749917446604,-150.0,0.00016999,2]
[365796109,1749917446614,-150.0,0.00016999,2]
[365796111,1749917446624,-167.10122488,0.00016999,2]
[365796112,1749917446634,-3536.87257337,0.00016999,2]
[365797009,1749917484139,500.0,0.00015069,2]
[365797012,1749917544882,365.02,0.00013699,2]
[365797013,1749917677373,180.0,0.0001552,2]
[365797014,1749917730551,168.0,0.00015408,2]
[365797015,1749917733597,168.0,0.00015464,2]
[365797018,1749917796479,666.0,0.00015915,2]
[365797019,1749917820313,1055.21,0.00015918,2]
[365797020,1749917827588,1500.0,0.00015918,2]
[365797022,1749917876716,600.0,0.00015069,2]
[365797023,1749917911960,205.0,0.00015012,2]
[365797025,1749917912231,205.0,0.00015467,2]
[365797026,1749917912517,205.0,0.00015921,3]
[365797028,1749917982638,1658.0,0.00013981,2]
[365797029,1749918003660,309.19,0.00015867,2]
[365797032,1749918038466,150.0,0.00015903,2]
[365797034,1749918144424,23900.0,0.00015809,2]
[365797041,1749918251632,201.0,0.00015376,2]
[365797042,1749918251898,201.0,0.00015831,2]
[365797043,1749918283742,201.0,0.00015376,2]
[365797044,1749918325768,43079.82706039,0.00016,2]
[365797045,1749918326225,246.33410198,0.000108,2]
[365797046,1749918337172,2446.38051852,9e-05,2]
[365797047,1749918352026,200.0,0.00015818,7]
[365797048,1749918356109,22577.65020539,6.94e-05,2]
[365797049,1749918390248,1989.78364956,0.00015,2]
[365797060,1749918427309,1517.64,0.000153,2]
[365797061,1749918431217,592.79516156,0.00015,2]
[365797062,1749918434821,962.70942016,0.00015,2]
[365797063,1749918437419,205.0,9.8e-05,2]
[365797064,1749918441302,2065.86962352,0.0001305,2]
[365797065,1749918441622,252.77211688,0.000101,2]
[365797066,1749918469458,166.27,0.00015771,2]
[365797067,1749918472489,4302.41219042,0.00013,2]
[365797068,1749918480297,250.0,0.0001578,2]
[365797070,1749918494436,195.11227811,0.0001439,2]
[365797071,1749918497325,1000.0,0.000135,2]
[365797072,1749918497488,298.92990828,0.000125,2]
[365797074,1749918513662,217.80137616,0.0001,2]
[365797075,1749918516841,2660.5326306,0.0001,2]
[365797077,1749918520195,493.16713197,0.000154,2]
[365797078,1749918524422,349.19758761,0.00010136,2]
[365797079,1749918524476,4171.52654124,0.00013368,2]
[365797080,1749918577503,193.5124765,0.0001552,2]
[365797096,1749918612540,201.0,0.00015286,2]
[365797097,1749918612934,201.0,0.00015747,2]
[365797115,1749918632139,150.0,0.00015802,2]
[365797117,1749918632212,-250.0,0.00016027,2]
[365797118,1749918632222,-250.0,0.00016041,2]
[365797119,1749918632232,-276.54553051,0.00016065,2]
[365797120,1749918632241,-500.0,0.00016165,2]
[365797121,1749918632250,-500.0,0.00016165,2]
[365797122,1749918632259,-201.0,0.00016208,3]
[365797123,1749918632269,-1658.0,0.00016245,2]
[365797124,1749918632278,-166.36,0.0001625,2]
[365797125,1749918632288,-1200.0,0.00016389,2]
[365797126,1749918632297,-600.0,0.00016389,2]
[365797127,1749918632306,-300.0,0.00016389,2]
[365797128,1749918632317,-300.0,0.00016389,2]
[365797129,1749918632326,-1957.856,0.0001639,2]
[365797130,1749918632336,-151.0,0.0001639,2]
[365797131,1749918632345,-207.4,0.0001639,2]
[365797132,1749918632357,-710.17914966,0.0001639,2]
[365797133,1749918632366,-300.0,0.00016397,2]
[365797134,1749918632375,-9999.99,0.00016399,2]
[365797135,1749918632385,-550.0,0.00016399,2]
[365797136,1749918632394,-2612.86,0.000164,2]
[365797137,1749918632403,-7285.51,0.000164,2]
[365797138,1749918632413,-150.99,0.000164,2]
[365797139,1749918632422,-300.0,0.000164,5]
[365797140,1749918632432,-1164.33,0.00016424,2]
[365797141,1749918632441,-150.0,0.00016424,2]
[365797142,1749918632451,-150.0,0.00016424,2]
[365797143,1749918632460,-1164.33,0.00016424,2]
[365797145,1749918632470,-455.08,0.00016424,2]
[365797147,1749918632480,-455.08,0.00016424,2]
[365797149,1749918632489,-600.0,0.00016439,2]
[365797151,1749918632498,-2030.296672,0.00016445,2]
[365797153,1749918632507,-150.0,0.000165,2]
[365797155,1749918632517,-300.57,0.000165,2]
[365797157,1749918632526,-300.63,0.000165,2]
[365797159,1749918632536,-150.0,0.000165,2]
[365797161,1749918632545,-150.48,0.000165,2]
[365797162,1749918632554,-150.0,0.000165,2]
[365797163,1749918632564,-150.0,0.000165,2]
[365797164,1749918632574,-1164.33,0.000165,2]
[365797165,1749918632583,-150.0,0.000165,2]
[365797166,1749918632592,-455.08,0.000165,2]
[365797168,1749918632603,-150.0,0.000165,2]
[365797169,1749918632612,-163.37,0.000165,2]
[365797170,1749918632622,-909.8,0.000165,2]
[365797171,1749918632632,-600.0,0.000165,6]
[365797172,1749918632642,-354.7,0.000165,2]
[365797173,1749918632651,-914.02977783,0.000165,2]
[365797174,1749918632667,-250.30022217,0.000165,2]
[365797175,1749918632677,-455.08,0.000165,2]
[365797176,1749918632691,-1000.0,0.000166,6]
[365797177,1749918632701,-201.0,0.00016669,3]
[365797178,1749918632710,-150.28,0.00016685,2]
[365797179,1749918632720,-1300.0,0.000167,6]
[365797180,1749918632730,-451.37197656,0.00016774,2]
[365797181,1749918632739,-1600.0,0.000168,6]
[365797182,1749918632750,-250.0,0.00016802,2]
[365797183,1749918632761,-4663.33517756,0.0001683,2]
[365797184,1749918632774,-520.06042784,0.0001683,2]
[365797185,1749918632784,-1183.07396985,0.0001687,2]
[365797186,1749918632796,-1500.0,0.0001687,2]
[365797187,1749918632808,-1417.0738,0.0001687,2]
[365797188,1749918632824,-567.4999996,0.0001687,2]
[365797189,1749918632836,-325.2,0.0001687,2]
[365797190,1749918632848,-379.5,0.0001687,2]
[365797235,1749918638961,-1857.06433854,0.0001687,2]
[365797238,1749918638980,-2251.98811296,0.0001687,2]
[365797371,1749918640274,-144.08961004,0.0001687,2]
[365797373,1749918640284,-155.0,0.00016874,2]
[365797376,1749918640294,-411.2137,0.00016895,2]
[365797377,1749918640303,-450.36895194,0.00016899,2]
[365797378,1749918640312,-31.01768808,0.00016899,2]
[365797379,1749918640326,-549.51389202,0.00016899,2]
[365797380,1749918640335,-151.20053768,0.00016899,2]
[365797381,1749918640344,-151.20053768,0.00016899,2]
[365797382,1749918640353,-151.20053768,0.00016899,2]
[365797383,1749918640363,-151.20053768,0.00016899,2]
[365797384,1749918640372,-151.20053768,0.000169,2]
[365797385,1749918640382,-151.20053768,0.000169,2]
[365797386,1749918640390,-303.84103541,0.000169,2]
[365797387,1749918640404,-1783.12646459,0.000169,2]
[365797388,1749918640413,-1101.0283,0.000169,2]
[365797389,1749918640422,-151.20053768,0.000169,2]
[365797390,1749918640431,-151.20053768,0.000169,2]
[365797391,1749918640440,-300.0,0.000169,6]
[365797392,1749918640449,-161.6691872,0.000169,2]
[365797393,1749918640458,-405.1275574,0.000169,2]
[365797394,1749918640467,-151.20053768,0.000169,2]
[365797395,1749918640476,-597.94240331,0.000169,2]
[365797396,1749918640485,-428.7232451,0.000169,2]
[365797397,1749918640494,-500.0,0.00016973,2]
[365797398,1749918640503,-833.63237626,0.00016979,2]
[365797400,1749918640513,-226.14356108,0.00016982,2]
[365797402,1749918640527,-642.08636844,0.00016982,2]
[365797404,1749918640536,-455.08,0.00016986,2]
[365797406,1749918640546,-75.8003189,0.0001699,2]
[365797408,1749918640560,-505.0903562,0.0001699,2]
[365797411,1749918640574,-802.70598556,0.0001699,2]
[365797413,1749918640583,-1000.0,0.00016994,2]
[365797415,1749918640592,-1141.6860128,0.00016995,2]
[365797539,1749918641782,201.0,0.00015286,2]
[365797690,1749918643178,-425.63053489,0.00016874,2]
[365798002,1749918646178,-464.44946511,0.00016874,2]
[365798004,1749918646188,-1705.55053489,0.00016995,2]
[365798006,1749918646200,-1530.84378201,0.00016995,2]
[365798008,1749918646210,-1896.2027653,0.00016995,2]
[365798010,1749918646219,-123.41587338,0.00016995,2]
[365798013,1749918646234,-2263.34420005,0.00016995,2]
[365798021,1749918646310,-994.11,0.00016995,2]
[365798549,1749918749447,500.0,0.00015069,2]
[365798550,1749918761798,216.0,0.00015286,2]
[365798551,1749918761838,382.82,0.00013699,2]
[365798552,1749918763838,168.0,0.000153,2]
[365798554,1749918793422,1000.0,0.0001586,2]
[365798555,1749918851734,204.0,0.00015286,2]
[365798556,1749918961306,607.36,0.00015778,2]
[365798557,1749919046103,10162.62,0.00025,120]
[365798558,1749919093522,1653.93,0.00013845,2]
[365798559,1749919174275,666.0,0.00015757,2]
[365798560,1749919199267,154.59,0.00015747,2]
[365798568,1749919326699,23900.0,0.00015762,2]
[365798569,1749919331806,201.0,0.0001513,2]
[365798570,1749919332087,201.0,0.00015607,2]
[365798572,1749919363478,150.0,0.00015725,7]
[365798573,1749919367030,201.0,0.0001513,2]
[365798575,1749919395218,3351.5,0.00025,120]
[365798576,1749919460454,162.44,0.00015713,2]
[365798577,1749919465534,341.18,0.00015713,2]
[365798581,1749919626273,150.0,0.00015747,2]
[365798596,1749919677077,167.68482798,0.00015967,2]
[365798597,1749919685995,250.0,0.00015731,2]
[365798598,1749919692152,201.0,0.00015085,2]
[365798599,1749919692429,201.0,0.00015568,2]
[365798601,1749919732274,201.0,0.00015085,2]
[365798602,1749919772990,150.0,0.00016,5]
[365798612,1749919832334,-177.0,0.0001605,2]
[365798613,1749919832345,-300.0,0.0001605,2]
[365798614,1749919832354,-250.0,0.0001605,2]
[365798615,1749919832364,-201.0,0.00016051,3]
[365798616,1749919832374,-300.0,0.00016063,2]
[365798617,1749919832383,-250.0,0.00016063,2]
[365798618,1749919832393,-300.0,0.00016069,2]
[365798619,1749919832402,-1653.93,0.00016108,2]
[365798620,1749919832411,-105.00039051,0.00016112,2]
[365798634,1749919833519,-141.75960949,0.00016112,2]
[365798635,1749919833530,-250.09,0.00016112,2]
[365798636,1749919833540,-249.84,0.00016112,2]
[365798637,1749919833550,-249.69,0.00016115,2]
[365798638,1749919833561,-154.69653233,0.00016115,2]
[365798639,1749919833574,-97.32346767,0.00016115,2]
[365798640,1749919833583,-152.0,0.00016115,3]
[365798641,1749919833593,-1200.0,0.00016128,2]
[365798642,1749919833603,-300.0,0.00016129,2]
[365798643,1749919833613,-300.0,0.0001613,2]
[365798644,1749919833622,-300.0,0.0001613,2]
[365798645,1749919833631,-300.0,0.0001613,2]
[365798646,1749919833641,-1957.856,0.00016131,2]
[365798647,1749919833650,-207.4,0.00016131,2]
[365798648,1749919833661,-300.0,0.00016136,2]
[365798649,1749919833671,-682.83,0.00016138,2]
[365798650,1749919833681,-150.99,0.00016138,2]
[365798651,1749919833691,-249.54,0.00016141,2]
[365798652,1749919833700,-250.21,0.00016141,2]
[365798653,1749919833710,-253.7,0.00016141,2]
[365798654,1749919834056,-305.67,0.00016141,2]
[365798655,1749919834068,-247.87,0.00016141,2]
[365798656,1749919834078,-252.04,0.00016163,2]
[365798657,1749919834089,-302.59,0.00016163,2]
[365798658,1749919834099,-247.11,0.00016163,2]
[365798659,1749919834109,-254.06,0.00016163,2]
[365798660,1749919834118,-249.5,0.00016163,2]
[365798661,1749919834128,-303.46,0.00016163,2]
[365798662,1749919834138,-248.78,0.00016163,2]
[365798663,1749919834148,-245.71,0.00016163,2]
[365798664,1749919834157,-250.12,0.00016163,2]
[365798665,1749919834167,-304.7,0.00016163,2]
[365798666,1749919834176,-250.07,0.00016165,2]
[365798667,1749919834186,-302.62,0.00016165,2]
[365798668,1749919834197,-246.85,0.00016165,2]
[365798669,1749919834207,-247.71,0.00016165,2]
[365798670,1749919834218,-249.19,0.00016165,2]
[365798671,1749919834227,-302.6,0.00016165,2]
[365798672,1749919834237,-246.64,0.00016165,2]
[365798673,1749919834247,-248.33,0.00016165,2]
[365798674,1749919834258,-252.43,0.00016165,2]
[365798675,1749919834268,-300.4,0.00016165,2]
[365798676,1749919834277,-251.72,0.00016165,2]
[365798677,1749919834287,-248.34,0.00016165,2]
[365798678,1749919834298,-302.4,0.00016165,2]
[365798679,1749919834313,-252.36,0.00016165,2]
[365798680,1749919834325,-249.14,0.00016165,2]
[365798681,1749919834335,-600.0,0.00016165,2]
[365798682,1749919834345,-500.0,0.00016165,2]
[365798683,1749919834355,-2030.296672,0.00016186,2]
[365798684,1749919834366,-283.0,0.00016392,2]
[365798685,1749919834376,-870.0,0.00016392,2]
[365798686,1749919834386,-2500.0,0.00016393,2]
[365798687,1749919834396,-2500.0,0.00016393,2]
[365798688,1749919834405,-170.71,0.000164,2]
[365798689,1749919834414,-1164.33,0.000164,2]
[365798690,1749919834424,-292.4,0.000164,2]
[365798691,1749919834434,-1586.32,0.000164,2]
[365798692,1749919834443,-170.78,0.000164,2]
[365798693,1749919834453,-907.76,0.000164,2]
[365798694,1749919834464,-300.0,0.000164,5]
[365798695,1749919834476,-170.78,0.000164,2]
[365798696,1749919834485,-455.08,0.000164,2]
[365798697,1749919834494,-909.59,0.000164,2]
[365798698,1749919834504,-170.78,0.000164,2]
[365798699,1749919834514,-586.0,0.00016402,2]
[365798700,1749919834524,-251.39,0.00016411,2]
[365798701,1749919834534,-254.37,0.00016411,2]
[365798702,1749919834546,-247.03,0.00016411,2]
[365798703,1749919834556,-248.01,0.00016411,2]
[365798704,1749919834565,-246.38,0.00016411,2]
[365798705,1749919834575,-300.63,0.00016422,2]
[365798706,1749919834585,-305.15,0.00016422,2]
[365798707,1749919834596,-163.42,0.00016424,2]
[365798708,1749919834606,-164.66,0.00016424,2]
[365798709,1749919834616,-163.42,0.00016424,2]
[365798710,1749919834626,-163.42,0.00016424,2]
[365798711,1749919834635,-163.42,0.00016424,2]
[365798712,1749919834645,-163.42,0.00016424,2]
[365798713,1749919834655,-163.42,0.00016424,2]
[365798714,1749919834664,-163.42,0.00016424,2]
[365798715,1749919834675,-163.42,0.00016424,2]
[365798716,1749919834685,-326.39,0.00016424,2]
[365798717,1749919834694,-474.65,0.00016424,2]
[365798718,1749919834704,-163.42,0.00016424,2]
[365798719,1749919834714,-500.0,0.00016439,2]
[365798720,1749919834723,-196.0,0.00016468,2]
[365798721,1749919834733,-151.0,0.0001649,2]
[365798722,1749919834743,-151.0,0.0001649,2]
[365798723,1749919834752,-151.0,0.0001649,2]
[365798724,1749919834763,-354.7,0.000165,2]
[365798725,1749919834773,-354.7,0.000165,2]
[365798726,1749919834782,-354.7,0.000165,2]
[365798727,1749919834791,-354.7,0.000165,2]
[365798728,1749919834801,-170.78,0.000165,2]
[365798729,1749919834811,-170.78,0.000165,2]
[365798730,1749919834821,-170.52,0.000165,2]
[365798731,1749919834831,-163.42,0.000165,2]
[365798732,1749919834840,-700.0,0.000165,6]
[365798733,1749919834850,-455.08,0.000165,2]
[365798734,1749919834860,-170.63,0.000165,2]
[365798735,1749919834869,-163.42,0.000165,2]
[365798736,1749919834879,-201.0,0.00016534,3]
[365798737,1749919834888,-1100.0,0.000166,6]
[365798738,1749919834898,-150.0,0.00016617,2]
[365798739,1749919834908,-150.0,0.00016639,2]
[365798740,1749919834917,-150.0,0.00016674,2]
[365798741,1749919834926,-150.0,0.00016694,2]
[365798742,1749919834937,-150.0,0.00016699,2]
[365798743,1749919834946,-909.95401747,0.000167,6]
[365798744,1749919834973,-590.04598253,0.000167,6]
[365798745,1749919834983,-150.0,0.00016708,2]
[365798746,1749919834993,-150.0,0.0001671,2]
[365798747,1749919835003,-152.0,0.00016742,4]
[365798748,1749919835013,-150.0,0.0001676,2]
[365798749,1749919835022,-868.22992952,0.00016762,2]
[365798750,1749919835032,-150.0,0.0001677,2]
[365798751,1749919835041,-150.0,0.00016771,2]
[365798752,1749919835050,-1000.0,0.00016779,2]
[365798753,1749919835060,-150.0,0.00016781,2]
[365798754,1749919835069,-150.0,0.00016787,2]
[365798755,1749919835079,-150.0,0.00016796,2]
[365798756,1749919835089,-1900.0,0.000168,6]
[365798757,1749919835098,-1095.398,0.00016802,2]
[365798758,1749919835109,-168.0,0.00016812,2]
[365798759,1749919835119,-150.0,0.00016817,2]
[365798760,1749919835129,-168.0,0.00016824,2]
[365798761,1749919835138,-1000.0,0.00016832,2]
[365798762,1749919835147,-184.36589679,0.00016839,2]
[365798763,1749919835159,-279.74419682,0.00016839,2]
[365798764,1749919835172,-369.52228265,0.00016839,2]
[365798765,1749919835182,-150.0,0.00016842,2]
[365798766,1749919835191,-150.0,0.00016845,2]
[365798767,1749919835202,-150.0,0.00016845,2]
[365798768,1749919835211,-150.0,0.00016848,2]
[365798769,1749919835221,-150.0,0.00016849,2]
[365798770,1749919835230,-150.0,0.00016857,2]
[365798771,1749919835240,-150.0,0.00016867,2]
[365798772,1749919835249,-27.19643965,0.0001687,2]
[365798773,1749919835261,-277.10356035,0.0001687,2]
[365798774,1749919835271,-300.27,0.00016874,2]
[365798775,1749919835281,-150.0,0.00016877,2]
[365798776,1749919835290,-150.0,0.00016878,2]
[365798777,1749919835300,-124.40574622,0.00016881,2]
[365798778,1749919835311,-153.65034432,0.00016881,2]
[365798779,1749919835321,-150.0,0.00016883,2]
[365798780,1749919835330,-150.0,0.00016886,2]
[365798781,1749919835340,-150.0,0.0001689,2]
[365798782,1749919835349,-323.96479568,0.00016893,2]
[365798783,1749919835361,-676.03520432,0.00016893,2]
[365798784,1749919835370,-150.0,0.00016897,2]
[365798785,1749919835379,-386.03053026,0.00016899,2]
[365798786,1749919835389,-538.14816297,0.00016899,2]
[365798787,1749919835399,-664.57640896,0.00016899,2]
[365798788,1749919835408,-233.81559417,0.00016899,2]
[365798789,1749919835418,-233.81559417,0.00016899,2]
[365798790,1749919835427,-233.81559417,0.00016899,2]
[365798791,1749919835437,-300.0,0.000169,6]
[365798792,1749919835446,-324.10204592,0.000169,2]
[365798793,1749919835456,-289.41270071,0.000169,2]
[365798794,1749919835468,-153.64068744,0.000169,2]
[365798795,1749919835478,-150.0,0.00016904,2]
[365798796,1749919835487,-150.0,0.00016911,2]
[365798797,1749919835498,-150.0,0.00016946,2]
[365798798,1749919835509,-150.0,0.00016957,2]
[365798799,1749919835519,-500.0,0.00016973,2]
[365798800,1749919835528,-500.0,0.00016973,2]
[365798801,1749919835538,-500.0,0.00016973,2]
[365798802,1749919835549,-187.38590277,0.00016973,2]
[365798803,1749919835559,-161.3553569,0.00016973,2]
[365798804,1749919835570,-500.0,0.00016973,2]
[365798805,1749919835580,-500.0,0.00016973,2]
[365798806,1749919835589,-89.86138667,0.00016973,2]
[365798812,1749919838412,-233.81559417,0.00016899,2]
[365798813,1749919838427,-124.51925747,0.00016973,2]
[365798814,1749919838445,-94.33225618,0.00016973,2]
[365798815,1749919838461,-504.10246529,0.00016973,2]
[365798816,1749919838477,-500.0,0.00016973,2]
[365798817,1749919838491,-500.14553355,0.00016973,2]
[365798818,1749919838508,-504.00328467,0.00016973,2]
[365798819,1749919838523,-150.0,0.00016978,2]
[365798820,1749919838538,-227.0,0.00016994,2]
[365798821,1749919838553,-200.0,0.00016995,2]
[365798822,1749919838568,-162.0,0.00016995,2]
[365798823,1749919838583,-151.0,0.00016995,2]
[365798824,1749919838598,-162.0,0.00016995,2]
[365798825,1749919838614,-151.0,0.00016995,2]
[365798826,1749919838629,-258.01482694,0.00016995,2]
[365798827,1749919838644,-1198.0,0.00016995,2]
[365798828,1749919838658,-151.0,0.00016995,2]
[365798829,1749919838673,-481.24221868,0.00016995,2]
[365798830,1749919838688,-151.0,0.00016995,2]
[365798831,1749919838703,-1198.0,0.00016995,2]
[365798832,1749919838718,-151.0,0.00016995,2]
[365798834,1749919838733,-151.0,0.00016995,2]
[365798837,1749919838749,-151.0,0.00016995,2]
[365798840,1749919838763,-151.0,0.00016995,2]
[365798845,1749919838778,-151.0,0.00016995,2]
[365798849,1749919838793,-151.0,0.00016995,2]
[365798851,1749919838808,-1198.0,0.00016995,2]
[365798855,1749919838823,-151.0,0.00016995,2]
[365798858,1749919838838,-1198.0,0.00016995,2]
[365798865,1749919838853,-151.0,0.00016995,2]
[365798869,1749919838868,-151.0,0.00016995,2]
[365798871,1749919838883,-1198.0,0.00016995,2]
[365798874,1749919838898,-151.0,0.00016995,2]
[365798876,1749919838912,-151.0,0.00016995,2]
[365798879,1749919838926,-1198.0,0.00016995,2]
[365798882,1749919838942,-151.0,0.00016995,2]